Workbook

Sheet Doubler
B1: Author: | C1: R. Abbott | F1: Total Report Pages: | G1: =X1 -> 3 | M1: Page | N1: Title | O1: Sub | P1: Sub | Q1: Sub | R1: Fig | S1: Table | T1: Running Counts | W1: Total Sheet Pages: | X1: =SUM(M:M) -> 3
B2: Check: | C2: J. Singh | F2: Report: | G2: AA-SM-290 | M2: No | N2: No | O2: Title | P2: Title | Q2: Title | R2: No | S2: No | W2: Total Title No: | X2: =SUM(N:N) -> 0
B3: Date: | C3: 20/10/2013 | F3: Revision: | G3: IR | W3: Total Sub No: | X3: =SUM(O:O) -> 0
B4: Section Number: | F4: Sheet Name | G4: DOUBLER LOAD DISTRIBUTION | W4: Total Sub No: | X4: =SUM(P:P) -> 0
B5: Report Title: | C5: STANDARD SPREADSHEET METHOD | W5: Total Sub No: | X5: =SUM(Q:Q) -> 0
B6: Section: | W6: Total Fig No: | X6: =SUM(R:R) -> 0
W7: Total Table No: | X7: =SUM(S:S) -> 0
E8: Author: | F8: =$C$1 -> R. Abbott | I8: Document Number: | J8: =$G$2 -> AA-SM-290
E9: Check: | F9: =$C$2 -> J. Singh | I9: Revision Level : | J9: =$G$3 -> IR | M9: 1
E10: Date: | F10: =$C$3 -> 20/10/2013 | I10: Page: | J10: =L10&" of "&$G$1 -> 1 of 3 | L10: =SUM($M$1:M9) -> 1
E11: Title: | F11: =$C$5 -> STANDARD SPREADSHEET METHOD
B13: =$G$4 -> DOUBLER LOAD DISTRIBUTION
B14: Joint Load Distribution: Ref AFFDL-TR-67-184 Analytical Design Methods for Aircraft Structural Joints
B15: Fastener Stiffness: Ref Huth, On the influence of Rivet Piability of Multi-Row Rivet Connections on Load Transfer
B17: Notes:
A18: ● | B18: All input values are in Blue, other values should not be ovewritten
A19: ● | B19: This spreadsheets used visual basic code to automatically trigger a specific 'goal-seek' solution to enable the bolt group calculation to converge.
A21: ● | B21: The visual basic code depends on absolute cell references so do not move any cells or insert any rows or columns
A23: ● | B23: Thickness are defined at each fastener position. The thickness between fasteners in the skin and the doubler are the calculated average of those defined at the fastener positions.
A25: ● | B25: Fastener stiffness values are automatically calculated using the Huth method, these values can be overwitten in cells F104 to F117
A27: ● | B27: In the original method the axial stiffness is based on the net area of the plate and doubler, this is judged to be incorrect as the length of the skin and doubler between the fastener does noe see the effect of the fastener hole. In this method the gross area of the skin and doubler are considered in the calcualtion of the axial stiffness of the plate and doubler.
A31: ● | B31: This method is set up for up to 14 fasteners. To analyse a situation with less than 14 fasteners the following approach should be taken
C33: For a joint with 13 fastneners set the diameter of fastener no. 14 to zero
C34: For a joitn with 12 fasteners set the diameters of fasteners no. 13 and 14 to zero
C35: etc.
B37: Axial Load carried by the skin
B38: Q = | C38: 3250 | D38: lb | BC38: Skin | BE38: Doubler
BC39: x | BD39: z | BE39: x | BF39: z
B40: Material Stiffness Properties | BB40: End to Fastener 1
B41: Aluminum | C41: 10700000 | D41: psi | BC41: 0 | BD41: =BD47 -> 0 | BE41: =BE43/2 -> 2 | BF41: =BF47 -> 0.06
B42: Steel | C42: 29000000 | D42: psi | BC42: =BC41 -> 0 | BD42: =BD48 -> 0.06 | BE42: =BE41 -> 2 | BF42: =BF48 -> 0.09
B43: Titanium | C43: 16000000 | D43: psi | BC43: =Y136 -> 4 | BD43: =BD49 -> 0.06 | BE43: =BC43 -> 4 | BF43: =BF42 -> 0.09
B44: Monel | C44: 26000000 | D44: psi | BC44: =BC43 -> 4 | BD44: 0 | BE44: =BC44 -> 4 | BF44: =BD43 -> 0.06
BC45: =BC41 -> 0 | BD45: =BD51 -> 0 | BE45: =BE41 -> 2 | BF45: =BD43 -> 0.06
B46: Material Selection for Individual Components | H46: Select Material Below: | BB46: Fastener 1 to Fastener 2
B47: Es = | C47: =INDEX($C$41:$C$44,MATCH(I47,$B$41:$B$44,0)) -> 10700000 | D47: psi, Young's modulus of Skin | H47: Skin: | I47: Aluminum | BC47: =BC44 -> 4 | BD47: 0 | BE47: =BC47 -> 4 | BF47: =BD48 -> 0.06 | BJ47: Fastener 1 | BK47: =IF(B102=0,0,1) -> 1 | BL47: =BE48 -> 4 | BM47: =BD47 -> 0
B48: Ed = | C48: =INDEX($C$41:$C$44,MATCH(I48,$B$41:$B$44,0)) -> 29000000 | D48: psi, Young's Modulus of Doubler | H48: Doubler: | I48: Steel | BC48: =BC47 -> 4 | BD48: =W137 -> 0.06 | BE48: =BC48 -> 4 | BF48: =W137+X137 -> 0.09 | BL48: =BL47 -> 4 | BM48: =MAX(BF48,BF42) -> 0.09
B49: Ef = | C49: =INDEX($C$41:$C$44,MATCH(I49,$B$41:$B$44,0)) -> 26000000 | D49: psi, Young's Modulus of Fastener | H49: Fastener: | I49: Monel | BC49: =Y137 -> 5.5 | BD49: =BD48 -> 0.06 | BE49: 5.5 | BF49: =BF48 -> 0.09
BC50: =BC49 -> 5.5 | BD50: =0 -> 0 | BE50: 5.5 | BF50: =BD48 -> 0.06
B51: Input Data for Huth Fastener Stiffness Calculation | H51: Select Type of Joint Below: | BC51: =BC47 -> 4 | BD51: =BD47 -> 0 | BE51: 4 | BF51: =BD48 -> 0.06
B52: Group | C52: Type | E52: a | F52: b | H52: Group: | I52: II | BB52: Fastener 2 to Fastener 3
B53: I | C53: Bolted Metallic | E53: 0.6666666667 | F53: 3 | BC53: =BC49 -> 5.5 | BD53: 0 | BE53: =BC53 -> 5.5 | BF53: =BD54 -> 0.06 | BJ53: Fastener 2 | BK53: =IF(B103=0,0,1) -> 1 | BL53: =BE54 -> 5.5 | BM53: =BD53*BK53 -> 0
B54: II | C54: Riveted Metallic | E54: 0.4 | F54: 2.2 | BC54: =BC53 -> 5.5 | BD54: =W139 -> 0.06 | BE54: =BC54 -> 5.5 | BF54: =W139+X139 -> 0.095 | BL54: =BL53 -> 5.5 | BM54: =MAX(BF54,BF48)*BK53 -> 0.095
BC55: =Y139 -> 7 | BD55: =BD54 -> 0.06 | BE55: 7 | BF55: =BF54 -> 0.095
B56: a = | C56: =IF(I52="I",E53,IF(I52="II",E54,IF(I52="III",#REF!,"Error"))) -> 0.4 | BC56: =BC55 -> 7 | BD56: =0 -> 0 | BE56: 7 | BF56: =BD54 -> 0.06
B57: b = | C57: =IF(I52="I",F53,IF(I52="II",F54,IF(I52="III",#REF!,"Error"))) -> 2.2 | BC57: =BC53 -> 5.5 | BD57: =BD53 -> 0 | BE57: 5.5 | BF57: =BD54 -> 0.06
BB58: Fastener 3 to Fastener 4
BC59: =BC55 -> 7 | BD59: 0 | BE59: =BC59 -> 7 | BF59: =BD60 -> 0.06 | BJ59: Fastener 3 | BK59: =IF(B104=0,0,1) -> 1 | BL59: =BE60 -> 7 | BM59: =BD59*BK59 -> 0
BC60: =BC59 -> 7 | BD60: =W141 -> 0.06 | BE60: =BC60 -> 7 | BF60: =W141+X141 -> 0.1 | BL60: =BL59 -> 7 | BM60: =MAX(BF60,BF54)*BK59 -> 0.1
BC61: =Y141 -> 8.5 | BD61: =BD60 -> 0.06 | BE61: 8.5 | BF61: =BF60 -> 0.1
BC62: =BC61 -> 8.5 | BD62: =0 -> 0 | BE62: 8.5 | BF62: =BD60 -> 0.06
BC63: =BC59 -> 7 | BD63: =BD59 -> 0 | BE63: 7 | BF63: =BD60 -> 0.06
E64: Author: | F64: =$C$1 -> R. Abbott | I64: Document Number: | J64: =$G$2 -> AA-SM-290 | BB64: Fastener 4 to Fastener 5
E65: Check: | F65: =$C$2 -> J. Singh | I65: Revision Level : | J65: =$G$3 -> IR | M65: 1 | BC65: =BC61 -> 8.5 | BD65: 0 | BE65: =BC65 -> 8.5 | BF65: =BD66 -> 0.06 | BJ65: Fastener 4 | BK65: =IF(B105=0,0,1) -> 1 | BL65: =BE66 -> 8.5 | BM65: =BD65*BK65 -> 0
E66: Date: | F66: =$C$3 -> 20/10/2013 | I66: Page: | J66: =L66&" of "&$G$1 -> 2 of 3 | L66: =SUM($M$1:M65) -> 2 | BC66: =BC65 -> 8.5 | BD66: =W143 -> 0.06 | BE66: =BC66 -> 8.5 | BF66: =W143+X143 -> 0.105 | BL66: =BL65 -> 8.5 | BM66: =MAX(BF66,BF60)*BK65 -> 0.105
E67: Title: | F67: =$C$5 -> STANDARD SPREADSHEET METHOD | BC67: =Y143 -> 10 | BD67: =BD66 -> 0.06 | BE67: 10 | BF67: =BF66 -> 0.105
BC68: =BC67 -> 10 | BD68: =0 -> 0 | BE68: 10 | BF68: =BF65 -> 0.06
B69: =$G$4 -> DOUBLER LOAD DISTRIBUTION | BC69: =BC65 -> 8.5 | BD69: =BD65 -> 0 | BE69: 8.5 | BF69: =BF65 -> 0.06
B70: Joint Load Distribution: Ref AFFDL-TR-67-184 Analytical Design Methods for Aircraft Structural Joints | BB70: Fastener 5 to Fastener 6
B71: Fastener Stiffness: Ref Huth, On the influence of Rivet Pliability of Multi-Row Rivet Connections on Load Transfer | AO71: n = | AP71: =IF(AG70="Single Shear",1,IF(AG70="Double Shear",2,"Error")) -> Error | AR71: n = 1 For Single-Shear; n = 2 For Double-Shear Joints | BC71: =BC67 -> 10 | BD71: 0 | BE71: =BC71 -> 10 | BF71: =BD72 -> 0.06 | BJ71: Fastener 5 | BK71: =IF(B106=0,0,1) -> 1 | BL71: =BE72 -> 10 | BM71: =BD71*BK71 -> 0
B72: In the tables below input the blue value: Fastener pitch, skin and doubler widths, fastener diameter, skin and doubler thicknesses | BC72: =BC71 -> 10 | BD72: =W145 -> 0.06 | BE72: =BC72 -> 10 | BF72: =W145+X145 -> 0.11 | BL72: =BL71 -> 10 | BM72: =MAX(BF72,BF66)*BK71 -> 0.11
BC73: =Y145 -> 11.5 | BD73: =BD72 -> 0.06 | BE73: 11.5 | BF73: =BF72 -> 0.11
BC74: =BC73 -> 11.5 | BD74: =0 -> 0 | BE74: 11.5 | BF74: =BF71 -> 0.06
X75: 1 | Y75: 2 | Z75: 3 | AA75: 4 | AB75: 5 | AC75: 6 | AD75: 7 | AE75: 8 | AF75: 9 | AG75: 10 | AH75: 11 | AI75: 12 | AJ75: 13 | AK75: 14 | AL75: 15 | AM75: 16 | AO75: C = | AP75: =1/((1/(D102*$C$48) + 1/(C102*$C$47) + 1/(2*D102*$C$49) + 1/(2*C102*$C$49))*(C57)*((D102+C102)/(2*B102))^C56) -> 220441.7491 | AQ75: in/lbf | AR75: Bolt Flexibility Constant | BC75: =BC71 -> 10 | BD75: =BD71 -> 0 | BE75: 10 | BF75: =BF71 -> 0.06
Y76: Δ | Z76: Fastener | AA76: Fastener | AB76: Fastener | AC76: Fastener | AD76: Doubler | AE76: Doubler | AF76: Doubler | AG76: Interim | AH76: Σ | AI76: Σ | AJ76: Load in | AK76: Base | AL76: Base | AM76: Diff | BB76: Fastener 6 to Fastener 7
A77: Fastener | B77: Pitch | C77: Skin | G77: Doubler | V77: Ratio of | Y77: Strain | Z77: Slop | AA77: Shear | AB77: Spring | AC77: Load | AD77: Load | AE77: Spring | AF77: Strain | AG77: Loads | AH77: Interim | AI77: Applied | AJ77: Base | AK77: Structure | AL77: Structure | AM77: in Strain | AO77: Kf = | AP77: =1/AP75 -> 4.536345787e-06 | AQ77: lbf/in | AR77: Bolt Spring Constant, Kf = 1/C | BC77: =BC73 -> 11.5 | BD77: 0 | BE77: =BC77 -> 11.5 | BF77: =BD78 -> 0.06 | BJ77: Fastener 6 | BK77: =IF(B107=0,0,1) -> 1 | BL77: =BE78 -> 11.5 | BM77: =BD77*BK77 -> 0
V78: Doubler | AA78: Strain | AB78: Constant | AE78: Constant | AH78: Loads | AI78: Loads | AJ78: Structure | AK78: Spring | AL78: Strain | BC78: =BC77 -> 11.5 | BD78: =W147 -> 0.06 | BE78: =BC78 -> 11.5 | BF78: =W147+X147 -> 0.115 | BL78: =BL77 -> 11.5 | BM78: =MAX(BF78,BF72)*BK77 -> 0.115
C79: Thick | D79: Width | E79: Area | F79: Stiffness | G79: Thick | H79: Width | I79: Area | J79: Stiffness | V79: to Skin | AK79: Const | BC79: =Y147 -> 13 | BD79: =BD78 -> 0.06 | BE79: 13 | BF79: =BF78 -> 0.115
B80: (in) | C80: (in) | D80: (in) | E80: (in²) | F80: (lb/in) | G80: (in) | H80: (in) | I80: (in²) | J80: (lb/in) | V80: Stiffness | W80: 1 | X80: =$B102 -> 0.19 | Y80: =AA80 -> 0.004265211908 | AA80: =AC80/AB80 -> 0.004265211908 | AB80: =$F102 -> 220441.7491 | AC80: 940.2307734 | AD80: =IF(X80=0,#REF!,SUM(AC80:AC80)) -> 940.2307734 | AE80: =$J81 -> 1160000 | AF80: =AD80/AE80 -> 0.0008105437702 | AH80: =SUM(AG80:AG80) -> 0 | AI80: =$C$38+AH80 -> 3250 | AJ80: =AI80-AC80 -> 2309.769227 | AK80: =$F81 -> 856000 | AL80: =AJ80/AK80 -> 0.002698328536 | AM80: =AL80-AF80 -> 0.001887784766 | BC80: =BC79 -> 13 | BD80: =0 -> 0 | BE80: 13 | BF80: =BF77 -> 0.06
A81: 1-2 | B81: 1.5 | C81: =AVERAGE(C102:C103) -> 0.06 | D81: 2 | E81: =(D81)*C81 -> 0.12 | F81: =$C$47*E81/B81 -> 856000 | G81: =AVERAGE(D102:D103) -> 0.03 | H81: 2 | I81: =(H81)*G81 -> 0.06 | J81: =$C$48*I81/B81 -> 1160000 | V81: =J81/F81 -> 1.355140187 | W81: 2 | X81: 0.19 | Y81: =Y80-AM80 -> 0.002377427142 | AA81: =Y81 -> 0.002377427142 | AB81: 220441.7491 | AC81: =AA81*AB81 -> 524.0841977 | AD81: =IF(X81=0,AD80,SUM(AC80:AC81)) -> 1464.314971 | AE81: 1353333.333 | AF81: 0.001082006136 | AH81: =SUM(AG80:AG81) -> 0 | AI81: 3250 | AJ81: =AI81-AD81 -> 1785.685029 | AK81: 856000 | AL81: 0.002086080641 | AM81: 0.001004074505 | BC81: =BC77 -> 11.5 | BD81: =BD77 -> 0 | BE81: 11.5 | BF81: =BF77 -> 0.06
A82: 2-3 | B82: 1.5 | C82: 0.06 | D82: 2 | E82: =(D82)*C82 -> 0.12 | F82: 856000 | G82: 0.035 | H82: 2 | I82: =(H82)*G82 -> 0.07 | J82: 1353333.333 | V82: 1.580996885 | W82: 3 | X82: 0.19 | Y82: 0.001373352637 | AA82: 0.001373352637 | AB82: 240714.5096 | AC82: 330.5859066 | AD82: =IF(X82=0,AD81,SUM(AC80:AC82)) -> 1794.900878 | AE82: 1546666.667 | AF82: 0.001160496257 | AH82: =SUM(AG80:AG82) -> 0 | AI82: 3250 | AJ82: 1455.099122 | AK82: 856000 | AL82: 0.001699882152 | AM82: 0.000539385895 | BB82: Fastener 7 to Fastener 8
A83: 3-4 | B83: 1.5 | C83: 0.06 | D83: 2 | E83: 0.12 | F83: 856000 | G83: 0.04 | H83: 2 | I83: 0.08 | J83: 1546666.667 | V83: 1.806853583 | W83: 4 | X83: 0.19 | Y83: 0.0008339667423 | AA83: 0.0008339667423 | AB83: 240714.5096 | AC83: 200.7478954 | AD83: =IF(X83=0,AD82,SUM(AC80:AC83)) -> 1995.648773 | AE83: 1740000 | AF83: 0.001146924582 | AH83: =SUM(AG80:AG83) -> 0 | AI83: 3250 | AJ83: 1254.351227 | AK83: 856000 | AL83: 0.001465363583 | AM83: 0.0003184390005 | BC83: =BC79 -> 13 | BD83: 0 | BE83: =BC83 -> 13 | BF83: =BD84 -> 0.06 | BJ83: Fastener 7 | BK83: =IF(B108=0,0,1) -> 1 | BL83: =BE84 -> 13 | BM83: =BD83*BK83 -> 0
A84: 4-5 | B84: 1.5 | C84: 0.06 | D84: 2 | E84: 0.12 | F84: 856000 | G84: 0.045 | H84: 2 | I84: 0.09 | J84: 1740000 | V84: 2.03271028 | W84: 5 | X84: 0.19 | Y84: 0.0005155277418 | AA84: 0.0005155277418 | AB84: 252787.8327 | AC84: 130.3191405 | AD84: =IF(X84=0,AD83,SUM(AC80:AC84)) -> 2125.967914 | AE84: 1933333.333 | AF84: 0.001099638576 | AH84: =SUM(AG80:AG84) -> 0 | AI84: 3250 | AJ84: 1124.032086 | AK84: 856000 | AL84: 0.001313121596 | AM84: 0.0002134830201 | BC84: =BC83 -> 13 | BD84: =W149 -> 0.06 | BE84: =BC84 -> 13 | BF84: =W149+X149 -> 0.12 | BL84: =BL83 -> 13 | BM84: =MAX(BF84,BF78)*BK83 -> 0.12
A85: 5-6 | B85: 1.5 | C85: 0.06 | D85: 2 | E85: 0.12 | F85: 856000 | G85: 0.05 | H85: 2 | I85: 0.1 | J85: 1933333.333 | V85: 2.258566978 | W85: 6 | X85: 0.19 | Y85: 0.0003020447216 | AA85: 0.0003020447216 | AB85: 252787.8327 | AC85: 76.35323056 | AD85: =IF(X85=0,AD84,SUM(AC80:AC85)) -> 2202.321144 | AE85: 2126666.667 | AF85: 0.001035574206 | AH85: =SUM(AG80:AG85) -> 0 | AI85: 3250 | AJ85: 1047.678856 | AK85: 856000 | AL85: 0.001223923897 | AM85: 0.0001883496912 | BC85: =Y149 -> 14.5 | BD85: =BD84 -> 0.06 | BE85: 14.5 | BF85: =BF84 -> 0.12
A86: 6-7 | B86: 1.5 | C86: 0.06 | D86: 2 | E86: 0.12 | F86: 856000 | G86: 0.055 | H86: 2 | I86: 0.11 | J86: 2126666.667 | V86: 2.484423676 | W86: 7 | X86: 0.19 | Y86: 0.0001136950305 | AA86: 0.0001136950305 | AB86: 259902.4294 | AC86: 29.54961463 | AD86: =IF(X86=0,AD85,SUM(AC80:AC86)) -> 2231.870759 | AE86: 2320000 | AF86: 0.0009620132581 | AH86: =SUM(AG80:AG86) -> 0 | AI86: 3250 | AJ86: 1018.129241 | AK86: 856000 | AL86: 0.001189403319 | AM86: 0.000227390061 | BC86: =BC85 -> 14.5 | BD86: =0 -> 0 | BE86: 14.5 | BF86: =BF83 -> 0.06
A87: 7-8 | B87: 1.5 | C87: 0.06 | D87: 2 | E87: 0.12 | F87: 856000 | G87: 0.06 | H87: 2 | I87: 0.12 | J87: 2320000 | V87: 2.710280374 | W87: 8 | X87: 0.19 | Y87: -0.0001136950305 | AA87: -0.0001136950305 | AB87: 259902.4294 | AC87: -29.54961463 | AD87: =IF(X87=0,AD86,SUM(AC80:AC87)) -> 2202.321144 | AE87: 2126666.667 | AF87: 0.001035574206 | AH87: =SUM(AG80:AG87) -> 0 | AI87: 3250 | AJ87: 1047.678856 | AK87: 856000 | AL87: 0.001223923897 | AM87: 0.0001883496912 | BC87: =BC83 -> 13 | BD87: =BD83 -> 0 | BE87: 13 | BF87: =BF83 -> 0.06
A88: 8-9 | B88: 1.5 | C88: 0.06 | D88: 2 | E88: 0.12 | F88: 856000 | G88: 0.055 | H88: 2 | I88: 0.11 | J88: 2126666.667 | V88: 2.484423676 | W88: 9 | X88: 0.19 | Y88: -0.0003020447216 | AA88: -0.0003020447216 | AB88: 252787.8327 | AC88: -76.35323056 | AD88: =IF(X88=0,AD87,SUM(AC80:AC88)) -> 2125.967914 | AE88: 1933333.333 | AF88: 0.001099638576 | AH88: =SUM(AG80:AG88) -> 0 | AI88: 3250 | AJ88: 1124.032086 | AK88: 856000 | AL88: 0.001313121596 | AM88: 0.0002134830201 | BB88: Fastener 8 to Fastener 9
A89: 9-10 | B89: 1.5 | C89: 0.06 | D89: 2 | E89: 0.12 | F89: 856000 | G89: 0.05 | H89: 2 | I89: 0.1 | J89: 1933333.333 | V89: 2.258566978 | W89: 10 | X89: 0.19 | Y89: -0.0005155277418 | AA89: -0.0005155277418 | AB89: 252787.8327 | AC89: -130.3191405 | AD89: =IF(X89=0,AD88,SUM(AC80:AC89)) -> 1995.648773 | AE89: 1740000 | AF89: 0.001146924582 | AH89: 0 | AI89: 3250 | AJ89: 1254.351227 | AK89: 856000 | AL89: 0.001465363583 | AM89: 0.0003184390005 | BC89: =BC85 -> 14.5 | BD89: 0 | BE89: =BC89 -> 14.5 | BF89: =BD90 -> 0.06 | BJ89: Fastener 8 | BK89: =IF(B109=0,0,1) -> 1 | BL89: =BE90 -> 14.5 | BM89: =BD89*BK89 -> 0
A90: 10-11 | B90: 1.5 | C90: 0.06 | D90: 2 | E90: 0.12 | F90: 856000 | G90: 0.045 | H90: 2 | I90: 0.09 | J90: 1740000 | V90: 2.03271028 | W90: 11 | X90: 0.19 | Y90: -0.0008339667423 | AA90: -0.0008339667423 | AB90: 240714.5096 | AC90: -200.7478954 | AD90: =IF(X90=0,AD89,SUM(AC80:AC90)) -> 1794.900878 | AE90: 1546666.667 | AF90: 0.001160496257 | AH90: 0 | AI90: 3250 | AJ90: 1455.099122 | AK90: 856000 | AL90: 0.001699882152 | AM90: 0.000539385895 | BC90: =BC89 -> 14.5 | BD90: =W151 -> 0.06 | BE90: =BC90 -> 14.5 | BF90: =W151+X151 -> 0.115 | BL90: =BL89 -> 14.5 | BM90: =MAX(BF90,BF84)*BK89 -> 0.12
A91: 11-12 | B91: 1.5 | C91: 0.06 | D91: 2 | E91: 0.12 | F91: 856000 | G91: 0.04 | H91: 2 | I91: 0.08 | J91: 1546666.667 | V91: 1.806853583 | W91: 12 | X91: 0.19 | Y91: -0.001373352637 | AA91: -0.001373352637 | AB91: 240714.5096 | AC91: -330.5859066 | AD91: =IF(X91=0,AD90,SUM(AC80:AC91)) -> 1464.314971 | AE91: 1353333.333 | AF91: 0.001082006136 | AH91: 0 | AI91: 3250 | AJ91: 1785.685029 | AK91: 856000 | AL91: 0.002086080641 | AM91: 0.001004074505 | BC91: =Y151 -> 16 | BD91: =BD90 -> 0.06 | BE91: 16 | BF91: =BF90 -> 0.115
A92: 12-13 | B92: 1.5 | C92: 0.06 | D92: 2 | E92: 0.12 | F92: 856000 | G92: 0.035 | H92: 2 | I92: 0.07 | J92: 1353333.333 | V92: 1.580996885 | W92: 13 | X92: 0.19 | Y92: -0.002377427142 | AA92: -0.002377427142 | AB92: 220441.7491 | AC92: -524.0841977 | AD92: =IF(X92=0,AD91,SUM(AC80:AC92)) -> 940.2307734 | AE92: 1160000 | AF92: 0.0008105437702 | AH92: 0 | AI92: 3250 | AJ92: 2309.769227 | AK92: 856000 | AL92: 0.002698328536 | AM92: 0.001887784766 | BC92: =BC91 -> 16 | BD92: =0 -> 0 | BE92: 16 | BF92: =BF89 -> 0.06
A93: 13-14 | B93: 1.5 | C93: 0.06 | D93: 2 | E93: 0.12 | F93: 856000 | G93: 0.03 | H93: 2 | I93: 0.06 | J93: 1160000 | V93: 1.355140187 | W93: 14 | X93: 0.19 | Y93: -0.004265211908 | AA93: -0.004265211908 | AB93: 220441.7491 | AC93: -940.2307734 | AD93: =IF(X93=0,AD92,SUM(AC80:AC93)) -> 2.626165951e-10 | AE93: =#REF! ->  | AH93: =SUM(AG80:AG93) -> 0 | AI93: 3250 | AJ93: 3250 | AK93: =#REF! ->  | BC93: =BC89 -> 14.5 | BD93: =BD89 -> 0 | BE93: 14.5 | BF93: =BF89 -> 0.06
BB94: Fastener 9 to Fastener 10
BC95: =BC91 -> 16 | BD95: 0 | BE95: =BC95 -> 16 | BF95: =BD96 -> 0.06 | BJ95: Fastener 9 | BK95: =IF(B110=0,0,1) -> 1 | BL95: =BE96 -> 16 | BM95: =BD95*BK95 -> 0
BC96: =BC95 -> 16 | BD96: =W153 -> 0.06 | BE96: =BC96 -> 16 | BF96: =W153+X153 -> 0.11 | BL96: =BL95 -> 16 | BM96: =MAX(BF96,BF90)*BK95 -> 0.115
G97: Results | BC97: =Y153 -> 17.5 | BD97: =BD96 -> 0.06 | BE97: 17.5 | BF97: =BF96 -> 0.11
A98: Fastener | C98: Skin | D98: Doubler | E98: Average | F98: Fastener | G98: Fastener | H98: % of Load | I98: Doubler | J98: % of Load | K98: Skin | V98: Ratio of | BC98: =BC97 -> 17.5 | BD98: =0 -> 0 | BE98: 17.5 | BF98: =BF95 -> 0.06
B99: Dia | C99: Thick | D99: Thick | E99: Thickness | F99: Stiffness | G99: Load | H99: Transfer | I99: Load | J99: in | K99: Load | V99: Doubler | X99: Skin | Y99: Doubler | Z99: Bearing | AA99: Bearing | BC99: =BC95 -> 16 | BD99: =BD95 -> 0 | BE99: 16 | BF99: =BF95 -> 0.06
B100: (in) | C100: (in) | D100: (in) | E100: (in) | F100: (lb/in) | G100: (lb) | H100: in Fast. | I100: (lb) | J100: Doubler | K100: (lb) | V100: to Skin | X100: Bearing | Y100: Bearing | Z100: Stress | AA100: Stress | BB100: Fastener 10 to Fastener 11
V101: Load | X101: Area | Y101: Area | Z101: Skin | AA101: Doubler | AE101: =K102/E81 -> 27083.33333 | BC101: =BC97 -> 17.5 | BD101: 0 | BE101: =BC101 -> 17.5 | BF101: =BD102 -> 0.06 | BJ101: Fastener 10 | BK101: =IF(B111=0,0,1) -> 1 | BL101: =BE102 -> 17.5 | BM101: =BD101*BK101 -> 0
A102: 1 | B102: 0.19 | C102: 0.06 | D102: 0.03 | E102: =(D102+C102)/2 -> 0.045 | F102: =1/((1/(D102*$C$48) + 1/(C102*$C$47) + 1/(2*D102*$C$49) + 1/(2*C102*$C$49))*($C$57)*((D102+C102)/(2*B102))^$C$56) -> 220441.7491 | G102: =ABS(AC80) -> 940.2307734 | H102: =G102/MAX($I$102:$I$116) -> 0.4212747399 | I102: 0 | J102: =I102/$C$38 -> 0 | K102: =C38 -> 3250 | X102: =B102*C102 -> 0.0114 | Y102: =D102*B102 -> 0.0057 | Z102: =G102/X102 -> 82476.38363 | AA102: =G102/Y102 -> 164952.7673 | AD102: =I103/I81 -> 15670.51289 | AE102: =K103/E81 -> 19248.07689 | BC102: =BC101 -> 17.5 | BD102: =W155 -> 0.06 | BE102: =BC102 -> 17.5 | BF102: =W155+X155 -> 0.105 | BL102: =BL101 -> 17.5 | BM102: =MAX(BF102,BF96)*BK101 -> 0.11
A103: 2 | B103: 0.19 | C103: 0.06 | D103: 0.03 | E103: 0.045 | F103: 220441.7491 | G103: 524.0841977 | H103: 0.2348183449 | I103: =AD80 -> 940.2307734 | J103: 0.2893017764 | K103: =AJ80 -> 2309.769227 | V103: =I103/K103 -> 0.4070669756 | X103: 0.0114 | Y103: 0.0057 | Z103: 45972.29804 | AA103: 91944.59609 | AD103: 20918.7853 | AE103: 14880.70857 | BC103: =Y155 -> 19 | BD103: =BD102 -> 0.06 | BE103: 19 | BF103: =BF102 -> 0.105
A104: 3 | B104: 0.19 | C104: 0.06 | D104: 0.04 | E104: 0.05 | F104: 240714.5096 | G104: 330.5859066 | H104: 0.1481205421 | I104: 1464.314971 | J104: 0.4505584527 | K104: 1785.685029 | V104: 0.8200298191 | X104: 0.0114 | Y104: 0.0076 | Z104: 28998.76374 | AA104: 43498.14561 | AD104: 22436.26097 | AE104: 12125.82602 | BC104: =BC103 -> 19 | BD104: =0 -> 0 | BE104: 19 | BF104: =BF101 -> 0.06
A105: 4 | B105: 0.19 | C105: 0.06 | D105: 0.04 | E105: 0.05 | F105: 240714.5096 | G105: 200.7478954 | H105: 0.08994602156 | I105: 1794.900878 | J105: 0.5522771931 | K105: 1455.099122 | V105: 1.233524816 | X105: 0.0114 | Y105: 0.0076 | Z105: 17609.46451 | AA105: 26414.19676 | AD105: 22173.87526 | AE105: 10452.92689 | BC105: =BC101 -> 17.5 | BD105: =BD101 -> 0 | BE105: 17.5 | BF105: =BF101 -> 0.06
A106: 5 | B106: 0.19 | C106: 0.06 | D106: 0.05 | E106: 0.055 | F106: 252787.8327 | G106: 130.3191405 | H106: 0.05839009272 | I106: 1995.648773 | J106: 0.6140457763 | K106: 1254.351227 | V106: 1.590980844 | X106: 0.0114 | Y106: 0.0095 | Z106: 11431.50356 | AA106: 13717.80427 | AD106: 21259.67914 | AE106: 9366.934053 | BB106: Fastener 11 to Fastener 12
A107: 6 | B107: 0.19 | C107: 0.06 | D107: 0.05 | E107: 0.055 | F107: 252787.8327 | G107: 76.35323056 | H107: 0.03421041754 | I107: 2125.967914 | J107: 0.6541439734 | K107: 1124.032086 | V107: 1.891376536 | X107: 0.0114 | Y107: 0.0095 | Z107: 6697.651804 | AA107: 8037.182164 | AD107: 20021.10131 | AE107: 8730.657131 | BC107: =BC103 -> 19 | BD107: 0 | BE107: =BC107 -> 19 | BF107: =BD108 -> 0.06 | BJ107: Fastener 11 | BK107: =IF(B112=0,0,1) -> 1 | BL107: =BE108 -> 19 | BM107: =BD107*BK107 -> 0
A108: 7 | B108: 0.19 | C108: 0.06 | D108: 0.06 | E108: 0.06 | F108: 259902.4294 | G108: 29.54961463 | H108: 0.01323984129 | I108: 2202.321144 | J108: 0.6776372751 | K108: 1047.678856 | V108: 2.10209563 | X108: 0.0114 | Y108: 0.0114 | Z108: 2592.071459 | AA108: 2592.071459 | AD108: 18598.92299 | AE108: 8484.410343 | BC108: =BC107 -> 19 | BD108: =W157 -> 0.06 | BE108: =BC108 -> 19 | BF108: =W157+X157 -> 0.1 | BL108: =BL107 -> 19 | BM108: =MAX(BF108,BF102)*BK107 -> 0.105
A109: 8 | B109: 0.19 | C109: 0.06 | D109: 0.06 | E109: 0.06 | F109: 259902.4294 | G109: 29.54961463 | H109: 0.01323984129 | I109: 2231.870759 | J109: 0.6867294643 | K109: 1018.129241 | V109: 2.192129121 | X109: 0.0114 | Y109: 0.0114 | Z109: 2592.071459 | AA109: 2592.071459 | AD109: 20021.10131 | AE109: 8730.657131 | BC109: =Y157 -> 20.5 | BD109: =BD108 -> 0.06 | BE109: 20.5 | BF109: =BF108 -> 0.1
A110: 9 | B110: 0.19 | C110: 0.06 | D110: 0.05 | E110: 0.055 | F110: 252787.8327 | G110: 76.35323056 | H110: 0.03421041754 | I110: 2202.321144 | J110: 0.6776372751 | K110: 1047.678856 | V110: 2.10209563 | X110: 0.0114 | Y110: 0.0095 | Z110: 6697.651804 | AA110: 8037.182164 | AD110: 21259.67914 | AE110: 9366.934053 | BC110: =BC109 -> 20.5 | BD110: =0 -> 0 | BE110: 20.5 | BF110: =BF107 -> 0.06
A111: 10 | B111: 0.19 | C111: 0.06 | D111: 0.05 | E111: 0.055 | F111: 252787.8327 | G111: 130.3191405 | H111: 0.05839009272 | I111: 2125.967914 | J111: 0.6541439734 | K111: 1124.032086 | V111: 1.891376536 | X111: 0.0114 | Y111: 0.0095 | Z111: 11431.50356 | AA111: 13717.80427 | AD111: 22173.87526 | AE111: 10452.92689 | BC111: =BC107 -> 19 | BD111: =BD107 -> 0 | BE111: 19 | BF111: =BF107 -> 0.06
A112: 11 | B112: 0.19 | C112: 0.06 | D112: 0.04 | E112: 0.05 | F112: 240714.5096 | G112: 200.7478954 | H112: 0.08994602156 | I112: 1995.648773 | J112: 0.6140457763 | K112: 1254.351227 | V112: 1.590980844 | X112: 0.0114 | Y112: 0.0076 | Z112: 17609.46451 | AA112: 26414.19676 | AD112: 22436.26097 | AE112: 12125.82602 | BB112: Fastener 12 to Fastener 13
A113: 12 | B113: 0.19 | C113: 0.06 | D113: 0.04 | E113: 0.05 | F113: 240714.5096 | G113: 330.5859066 | H113: 0.1481205421 | I113: 1794.900878 | J113: 0.5522771931 | K113: 1455.099122 | V113: 1.233524816 | X113: 0.0114 | Y113: 0.0076 | Z113: 28998.76374 | AA113: 43498.14561 | AD113: 20918.7853 | AE113: 14880.70857 | BC113: =BC109 -> 20.5 | BD113: 0 | BE113: =BC113 -> 20.5 | BF113: =BD114 -> 0.06 | BJ113: Fastener 12 | BK113: =IF(B113=0,0,1) -> 1 | BL113: =BE113 -> 20.5 | BM113: =BD113*BK113 -> 0
A114: 13 | B114: 0.19 | C114: 0.06 | D114: 0.03 | E114: 0.045 | F114: 220441.7491 | G114: 524.0841977 | H114: 0.2348183449 | I114: 1464.314971 | J114: 0.4505584527 | K114: 1785.685029 | V114: 0.8200298191 | X114: 0.0114 | Y114: 0.0057 | Z114: 45972.29804 | AA114: 91944.59609 | AD114: 15670.51289 | AE114: 19248.07689 | BC114: =BC113 -> 20.5 | BD114: =W159 -> 0.06 | BE114: =BC114 -> 20.5 | BF114: =W159+X159 -> 0.095 | BL114: =BL113 -> 20.5 | BM114: =MAX(BF114,BF108)*BK113 -> 0.1
A115: 14 | B115: 0.19 | C115: 0.06 | D115: 0.03 | E115: 0.045 | F115: 220441.7491 | G115: 940.2307734 | H115: 0.4212747399 | I115: 940.2307734 | J115: 0.2893017764 | K115: 2309.769227 | V115: 0.4070669756 | X115: 0.0114 | Y115: 0.0057 | Z115: 82476.38363 | AA115: 164952.7673 | AE115: =K116/E93 -> 27083.33333 | BC115: =Y159 -> 22 | BD115: =BD114 -> 0.06 | BE115: 22 | BF115: =BF114 -> 0.095
I116: 2.626165951e-10 | J116: 8.08051062e-14 | K116: 3250 | BC116: =BC115 -> 22 | BD116: =0 -> 0 | BE116: 22 | BF116: =BF113 -> 0.06
BC117: =BC113 -> 20.5 | BD117: =BD113 -> 0 | BE117: 20.5 | BF117: =BF113 -> 0.06
BB118: Fastener 13 to Fastener 14
BC119: =BC115 -> 22 | BD119: 0 | BE119: =BC119 -> 22 | BF119: =BD120 -> 0.06 | BJ119: Fastener 13 | BK119: =IF(B114=0,0,1) -> 1 | BL119: =BE119 -> 22 | BM119: =BD119*BK119 -> 0
BC120: =BC119 -> 22 | BD120: =W161 -> 0.06 | BE120: =BC120 -> 22 | BF120: =W161+X161 -> 0.09 | BL120: =BL119 -> 22 | BM120: =MAX(BF120,BF114)*BK119 -> 0.095
BC121: =Y161 -> 23.5 | BD121: =BD120 -> 0.06 | BE121: 23.5 | BF121: =BF120 -> 0.09
E122: Author: | F122: =$C$1 -> R. Abbott | I122: Document Number: | J122: =$G$2 -> AA-SM-290 | BC122: =BC121 -> 23.5 | BD122: =0 -> 0 | BE122: 23.5 | BF122: =BF119 -> 0.06
E123: Check: | F123: =$C$2 -> J. Singh | I123: Revision Level : | J123: =$G$3 -> IR | M123: 1 | BC123: =BC119 -> 22 | BD123: =BD119 -> 0 | BE123: 22 | BF123: =BF119 -> 0.06
E124: Date: | F124: =$C$3 -> 20/10/2013 | I124: Page: | J124: =L124&" of "&$G$1 -> 3 of 3 | L124: =SUM($M$1:M123) -> 3 | BB124: Fastener 14 to End
E125: Title: | F125: =$C$5 -> STANDARD SPREADSHEET METHOD | BC125: =BC121 -> 23.5 | BD125: 0 | BE125: =BC125 -> 23.5 | BF125: =BD126 -> 0.06 | BJ125: Fastener 14 | BK125: =IF(B115=0,0,1) -> 1 | BL125: =BE125 -> 23.5 | BM125: =BD125*BK125 -> 0
BC126: =BC125 -> 23.5 | BD126: =BD120 -> 0.06 | BE126: =BC126 -> 23.5 | BF126: =BF120 -> 0.09 | BL126: =BL125 -> 23.5 | BM126: =MAX(BF126,BF120)*BK125 -> 0.09
B127: =$G$4 -> DOUBLER LOAD DISTRIBUTION | BC127: =Y163 -> 27.5 | BD127: =BD126 -> 0.06 | BE127: =BE126+BE41 -> 25.5 | BF127: =BF126 -> 0.09
B128: Doubler Diagram not to scale | BC128: =BC127 -> 27.5 | BD128: =0 -> 0 | BE128: =BE127 -> 25.5 | BF128: =BF125 -> 0.06
BC129: =BC125 -> 23.5 | BD129: =BD125 -> 0 | BE129: 23.5 | BF129: =BF125 -> 0.06
Y134: 0 | AA134: =AA135 -> 3250 | AC134: =AE101 -> 27083.33333
Y135: =Y136 -> 4 | Z135: =I102 -> 0 | AA135: =K102 -> 3250 | AB135: 0 | AC135: =AC134 -> 27083.33333
U136: 1 | V136: =B102 -> 0.19 | W136: =C102 -> 0.06 | X136: =D102 -> 0.03 | Y136: 4 | Z136: =I103 -> 940.2307734 | AA136: =K103 -> 2309.769227 | AB136: =AD102 -> 15670.51289 | AC136: =AE102 -> 19248.07689
W137: =C81 -> 0.06 | X137: =G81 -> 0.03 | Y137: =Y136+B81 -> 5.5 | Z137: =Z136 -> 940.2307734 | AA137: =AA136 -> 2309.769227 | AB137: =AB136 -> 15670.51289 | AC137: =AC136 -> 19248.07689
U138: 2 | V138: =B103 -> 0.19 | W138: =C103 -> 0.06 | X138: =D103 -> 0.03 | Y138: =Y137 -> 5.5 | Z138: =I104 -> 1464.314971 | AA138: =K104 -> 1785.685029 | AB138: =AD103 -> 20918.7853 | AC138: =AE103 -> 14880.70857 | AD138: =Z138 -> 1464.314971 | AE138: 1 | AF138: =Y136 -> 4 | AG138: =AFF85 -> 0 | AH138: =G102 -> 940.2307734 | AI138: =Z102 -> 82476.38363 | AJ138: =AA102 -> 164952.7673
W139: =C82 -> 0.06 | X139: =G82 -> 0.035 | Y139: =Y138+B82 -> 7 | Z139: =Z138 -> 1464.314971 | AA139: =AA138 -> 1785.685029 | AB139: =AB138 -> 20918.7853 | AC139: =AC138 -> 14880.70857
U140: 3 | V140: =B104 -> 0.19 | W140: =C104 -> 0.06 | X140: =D104 -> 0.04 | Y140: =Y139 -> 7 | Z140: =I105 -> 1794.900878 | AA140: =K105 -> 1455.099122 | AB140: =AD104 -> 22436.26097 | AC140: =AE104 -> 12125.82602 | AD140: =Z140 -> 1794.900878 | AE140: 2 | AF140: =Y138 -> 5.5 | AG140: =AFF86 -> 0 | AH140: =G103 -> 524.0841977 | AI140: =Z103 -> 45972.29804 | AJ140: =AA103 -> 91944.59609
W141: =C83 -> 0.06 | X141: =G83 -> 0.04 | Y141: =Y140+B83 -> 8.5 | Z141: =Z140 -> 1794.900878 | AA141: =AA140 -> 1455.099122 | AB141: =AB140 -> 22436.26097 | AC141: =AC140 -> 12125.82602
U142: 4 | V142: =B105 -> 0.19 | W142: =C105 -> 0.06 | X142: =D105 -> 0.04 | Y142: =Y141 -> 8.5 | Z142: =I106 -> 1995.648773 | AA142: =K106 -> 1254.351227 | AB142: =AD105 -> 22173.87526 | AC142: =AE105 -> 10452.92689 | AD142: =Z142 -> 1995.648773 | AE142: 3 | AF142: =Y140 -> 7 | AG142: =AFF87 -> 0 | AH142: =G104 -> 330.5859066 | AI142: =Z104 -> 28998.76374 | AJ142: =AA104 -> 43498.14561
W143: =C84 -> 0.06 | X143: =G84 -> 0.045 | Y143: =IF(V144=0,Y142,Y142+B84) -> 10 | Z143: =Z142 -> 1995.648773 | AA143: =AA142 -> 1254.351227 | AB143: =AB142 -> 22173.87526 | AC143: =AC142 -> 10452.92689
U144: 5 | V144: =B106 -> 0.19 | W144: =C106 -> 0.06 | X144: =D106 -> 0.05 | Y144: =Y143 -> 10 | Z144: =I107 -> 2125.967914 | AA144: =K107 -> 1124.032086 | AB144: =AD106 -> 21259.67914 | AC144: =AE106 -> 9366.934053 | AD144: =Z144 -> 2125.967914 | AE144: 4 | AF144: =Y142 -> 8.5 | AG144: =AFF88 -> 0 | AH144: =G105 -> 200.7478954 | AI144: =Z105 -> 17609.46451 | AJ144: =AA105 -> 26414.19676 | AL144: 0 | AM144: =AM145+AG138 -> 0
W145: =C85 -> 0.06 | X145: =G85 -> 0.05 | Y145: =IF(V146=0,Y144,Y144+B85) -> 11.5 | Z145: =Z144 -> 2125.967914 | AA145: =AA144 -> 1124.032086 | AB145: =AB144 -> 21259.67914 | AC145: =AC144 -> 9366.934053 | AL145: =AFG85 -> 0 | AM145: =AFM85 -> 0
U146: 6 | V146: =B107 -> 0.19 | W146: =C107 -> 0.06 | X146: =D107 -> 0.05 | Y146: =Y145 -> 11.5 | Z146: =I108 -> 2202.321144 | AA146: =K108 -> 1047.678856 | AB146: =AD107 -> 20021.10131 | AC146: =AE107 -> 8730.657131 | AD146: =Z146 -> 2202.321144 | AE146: 5 | AF146: =Y144 -> 10 | AG146: =AFF89 -> 0 | AH146: =G106 -> 130.3191405 | AI146: =Z106 -> 11431.50356 | AJ146: =AA106 -> 13717.80427 | AL146: 0 | AM146: 0
W147: =C86 -> 0.06 | X147: =G86 -> 0.055 | Y147: =IF(V148=0,Y146,Y146+B86) -> 13 | Z147: =Z146 -> 2202.321144 | AA147: =AA146 -> 1047.678856 | AB147: =AB146 -> 20021.10131 | AC147: =AC146 -> 8730.657131 | AL147: 0 | AM147: 0
U148: 7 | V148: =B108 -> 0.19 | W148: =C108 -> 0.06 | X148: =D108 -> 0.06 | Y148: =Y147 -> 13 | Z148: =I109 -> 2231.870759 | AA148: =K109 -> 1018.129241 | AB148: =AD108 -> 18598.92299 | AC148: =AE108 -> 8484.410343 | AD148: =Z148 -> 2231.870759 | AE148: 6 | AF148: =Y146 -> 11.5 | AG148: =AFF90 -> 0 | AH148: =G107 -> 76.35323056 | AI148: =Z107 -> 6697.651804 | AJ148: =AA107 -> 8037.182164 | AL148: 0 | AM148: 0
W149: =C87 -> 0.06 | X149: =G87 -> 0.06 | Y149: =IF(V150=0,Y148,Y148+B87) -> 14.5 | Z149: =Z148 -> 2231.870759 | AA149: =AA148 -> 1018.129241 | AB149: =AB148 -> 18598.92299 | AC149: =AC148 -> 8484.410343 | AL149: 0 | AM149: 0
U150: 8 | V150: =B109 -> 0.19 | W150: =C109 -> 0.06 | X150: =D109 -> 0.06 | Y150: =Y149 -> 14.5 | Z150: =I110 -> 2202.321144 | AA150: =K110 -> 1047.678856 | AB150: =AD109 -> 20021.10131 | AC150: =AE109 -> 8730.657131 | AD150: =Z150 -> 2202.321144 | AE150: 7 | AF150: =Y148 -> 13 | AG150: =AFF91 -> 0 | AH150: =G108 -> 29.54961463 | AI150: =Z108 -> 2592.071459 | AJ150: =AA108 -> 2592.071459 | AL150: 0 | AM150: 0
W151: =C88 -> 0.06 | X151: =G88 -> 0.055 | Y151: =IF(V152=0,Y150,Y150+B88) -> 16 | Z151: =Z150 -> 2202.321144 | AA151: =AA150 -> 1047.678856 | AB151: =AB150 -> 20021.10131 | AC151: =AC150 -> 8730.657131 | AL151: 0 | AM151: 0
U152: 9 | V152: =B110 -> 0.19 | W152: =C110 -> 0.06 | X152: =D110 -> 0.05 | Y152: =Y151 -> 16 | Z152: =I111 -> 2125.967914 | AA152: =K111 -> 1124.032086 | AB152: =AD110 -> 21259.67914 | AC152: =AE110 -> 9366.934053 | AD152: =Z152 -> 2125.967914 | AE152: 8 | AF152: =Y150 -> 14.5 | AG152: =AFF92 -> 0 | AH152: =G109 -> 29.54961463 | AI152: =Z109 -> 2592.071459 | AJ152: =AA109 -> 2592.071459 | AL152: 0 | AM152: 0
W153: =C89 -> 0.06 | X153: =G89 -> 0.05 | Y153: =IF(V154=0,Y152,Y152+B89) -> 17.5 | Z153: =Z152 -> 2125.967914 | AA153: =AA152 -> 1124.032086 | AB153: =AB152 -> 21259.67914 | AC153: =AC152 -> 9366.934053 | AL153: =AFG97 -> 0 | AM153: =AFM97 -> 0
U154: 10 | V154: =B111 -> 0.19 | W154: =C111 -> 0.06 | X154: =D111 -> 0.05 | Y154: =Y153 -> 17.5 | Z154: =I112 -> 1995.648773 | AA154: =K112 -> 1254.351227 | AB154: =AD111 -> 22173.87526 | AC154: =AE111 -> 10452.92689 | AD154: =Z154 -> 1995.648773 | AE154: 9 | AF154: =Y152 -> 16 | AG154: =AFF97 -> 0 | AH154: =G110 -> 76.35323056 | AI154: =Z110 -> 6697.651804 | AJ154: =AA110 -> 8037.182164 | AL154: =AFG98 -> 0 | AM154: =AFM98 -> 0
W155: =C90 -> 0.06 | X155: =G90 -> 0.045 | Y155: =IF(V156=0,Y154,Y154+B90) -> 19 | Z155: =Z154 -> 1995.648773 | AA155: =AA154 -> 1254.351227 | AB155: =AB154 -> 22173.87526 | AC155: =AC154 -> 10452.92689
U156: 11 | V156: =B112 -> 0.19 | W156: =C112 -> 0.06 | X156: =D112 -> 0.04 | Y156: =Y155 -> 19 | Z156: =I113 -> 1794.900878 | AA156: =K113 -> 1455.099122 | AB156: =AD112 -> 22436.26097 | AC156: =AE112 -> 12125.82602 | AD156: =Z156 -> 1794.900878 | AE156: 10 | AF156: =Y154 -> 17.5 | AG156: =AFF98 -> 0 | AH156: =G111 -> 130.3191405 | AI156: =Z111 -> 11431.50356 | AJ156: =AA111 -> 13717.80427
W157: =C91 -> 0.06 | X157: =G91 -> 0.04 | Y157: =IF(V158=0,Y156,Y156+B91) -> 20.5 | Z157: =Z156 -> 1794.900878 | AA157: =AA156 -> 1455.099122 | AB157: =AB156 -> 22436.26097 | AC157: =AC156 -> 12125.82602
U158: 12 | V158: =B113 -> 0.19 | W158: =C113 -> 0.06 | X158: =D113 -> 0.04 | Y158: =Y157 -> 20.5 | Z158: =I114 -> 1464.314971 | AA158: =K114 -> 1785.685029 | AB158: =AD113 -> 20918.7853 | AC158: =AE113 -> 14880.70857 | AE158: 11 | AF158: =Y156 -> 19 | AH158: =G112 -> 200.7478954 | AI158: =Z112 -> 17609.46451 | AJ158: =AA112 -> 26414.19676
W159: =C92 -> 0.06 | X159: =G92 -> 0.035 | Y159: =IF(V160=0,Y158,Y158+B92) -> 22 | Z159: =Z158 -> 1464.314971 | AA159: =AA158 -> 1785.685029 | AB159: =AB158 -> 20918.7853 | AC159: =AC158 -> 14880.70857
U160: 13 | V160: =B114 -> 0.19 | W160: =C114 -> 0.06 | X160: =D114 -> 0.03 | Y160: =Y159 -> 22 | Z160: =I115 -> 940.2307734 | AA160: =K115 -> 2309.769227 | AB160: =AD114 -> 15670.51289 | AC160: =AE114 -> 19248.07689 | AE160: 12 | AF160: =Y158 -> 20.5 | AH160: =G113 -> 330.5859066 | AI160: =Z113 -> 28998.76374 | AJ160: =AA113 -> 43498.14561
W161: =C93 -> 0.06 | X161: =G93 -> 0.03 | Y161: =IF(V162=0,Y160,Y160+B93) -> 23.5 | Z161: =Z160 -> 940.2307734 | AA161: =AA160 -> 2309.769227 | AB161: =AB160 -> 15670.51289 | AC161: =AC160 -> 19248.07689
U162: 14 | V162: =B115 -> 0.19 | W162: =C115 -> 0.06 | X162: =D115 -> 0.03 | Y162: =Y161 -> 23.5 | Z162: =I116 -> 2.626165951e-10 | AA162: =K116 -> 3250 | AB162: 0 | AC162: =AE115 -> 27083.33333 | AE162: 13 | AF162: =Y160 -> 22 | AH162: =G114 -> 524.0841977 | AI162: =Z114 -> 45972.29804 | AJ162: =AA114 -> 91944.59609
Y163: =Y162+Y135 -> 27.5 | AA163: =K116 -> 3250 | AC163: =AC162 -> 27083.33333
AE164: 14 | AF164: =Y162 -> 23.5 | AH164: =G115 -> 940.2307734 | AI164: =Z115 -> 82476.38363 | AJ164: =AA115 -> 164952.7673
